Workbook

Sheet 草案封面
A3: 陆丰市2025年财政预算第二次调整草案
A5: 编制单位：陆丰市财政局
A6: 编制时间：二○二五年十二月

Sheet 一般公共预算调整表
A1: 陆丰市2025年一般公共预算调整表（草案）
A2: 表1 | H2: 单位：万元
A3: 收 入 | B3: 2025年9月调整数 | C3: 调整数 | D3: 调整后预算数 | E3: 支 出 | F3: 2025年9月调整数 | G3: 调整数 | H3: 调整后预算数
A5: 一、一般公共预算收入 | B5: 176527 | C5: =D5-B5 -> 11973 | D5: =D6+D7 -> 188500 | E5: 一、一般公共预算支出 | F5: =F6+F7 -> 907971 | G5: =G6+G7 -> 5939 | H5: =H6+H7 -> 913910
A6: （一）税收收入 | B6: 81032 | C6: 2968 | D6: 84000 | E6: （一）本级公共预算支出 | F6: 513971 | G6: =H6-F6 -> 5939 | H6: 519910
A7: （二）非税收入 | B7: 95495 | C7: 9005 | D7: 104500 | E7: （二）上级追加及提前下达资金、结转支出资金 | F7: 394000 | G7: 0 | H7: 394000
A8: 二、上级补助收入 | B8: =SUM(B9,B17,B26) -> 640148 | C8: =SUM(C9,C17,C26) -> 49584 | D8: =SUM(D9,D17,D26) -> 689732 | E8: 二、上解上级支出 | F8: =F9+F10+F11 -> 54113 | G8: =G9+G10+G11 -> 0 | H8: =H9+H10+H11 -> 54113
A9: （一）可支配财力补助 | B9: =SUM(B10:B16) -> 249779 | C9: =SUM(C10:C16) -> 0 | D9: =SUM(D10:D16) -> 249779 | E9: （一）上解财政事权与支出责任基数 | F9: 46029 | G9: 0 | H9: 46029
A10: 1、税收返还 | B10: 10181 | C10: 0 | D10: 10181 | E10: （二）上缴临时救助借款及扣款
A11: 2、均衡性转移支付 | B11: 118473 | C11: 0 | D11: 118473 | E11: （三）上划经费基数 | F11: 8084 | G11: 0 | H11: 8084
A12: 3、县级基本财力保障 | B12: 78557 | C12: 0 | D12: 78557 | E12: 三、安排预算稳定调节基金 | F12: 2824 | G12: -2824 | H12: 0
A13: 4、固定数据补助支出 | B13: 17467 | C13: 0 | D13: 17467 | E13: 四、地方债券转货支出
A14: 5、企业事业单位划转补助收入（含工商质监） | B14: 3773 | C14: 0 | D14: 3773 | E14: 五、地方债券还本支出 | F14: 1562 | G14: =H14-F14 -> 0 | H14: 1562
A15: 6、其他转移性收入（革命老区转移支付等） | B15: 13828 | C15: 0 | D15: 13828 | E15: 六、调出资金
A16: 7、特殊转移支付补助（困难补助） | B16: 7500 | C16: 0 | D16: 7500
A17: （二）提前下达资金和追加转移支付 | B17: 380000 | C17: 49584 | D17: =B17+C17 -> 429584
A18: 三、调入资金（基金收入等） | B18: 45000 | C18: =D18-B18 -> -35000 | D18: 10000
A19: 四、调入预算稳定调节基金 | B19: 295 | C19: 458 | D19: 753
A20: 五、收回存量资金统筹收入 | B20: =B21+B22 -> 67000 | C20: =C21+C22 -> -12000 | D20: =D21+D22 -> 55000
A21: 1、统筹收回存量资金 | B21: 60000 | C21: -5000 | D21: 55000
A22: 2、调入其他资金 | B22: 7000 | C22: =D22-B22 -> -7000 | D22: 0
A23: 六、债务收入 | B23: =B24+B25 -> 23500 | C23: =C24+C25 -> 5906 | D23: =D24+D25 -> 29406
A24: 1、地方政府债券转贷收入（含再融资债券） | B24: 23500 | C24: 5906 | D24: 29406
A25: 2、上级临时救助借款
A26: 七、统筹上级补助 | B26: 10369 | C26: 0 | D26: 10369
A27: 八、上年结转收入 | B27: =B28+B29 -> 14000 | C27: =C28+C29 -> 3580 | D27: =D28+D29 -> 17580
A28: 1、上年结转 | B28: 14000 | C28: =D28-B28 -> 3580 | D28: 17580 | E28: 六、财政总支出 | F28: =F5+F8+F12+F13+F14 -> 966470 | G28: =G5+G8+G12+G13+G14 -> 3115 | H28: =H5+H8+H12+H13+H14 -> 969585
A29: 2、净结余 | E29: 七、剔除上级追加后总支出 | F29: =F28-F7 -> 572470 | G29: =G28-G7 -> 3115 | H29: =H28-H7 -> 575585
A30: 本级可安排财力合计 | B30: =B5+B9+B18+B19+B20+B26+B23+B29 -> 572470 | C30: =C5+C9+C18+C19+C20+C26+C23+C29 -> -28663 | D30: =D5+D9+D18+D19+D20+D26+D23+D29 -> 543807 | E30: 八、年终结余 | G30: =H30-F30 -> 21386 | H30: =H31+H32 -> 21386
A31: 加：不可支配财力补助 | B31: 380000 | C31: 49584 | D31: =D17 -> 429584 | E31: 其中：结转下年支出 | G31: =H31-F31 -> 21386 | H31: 21386
A32: 上年结转 | B32: 14000 | C32: 3580 | D32: =D28 -> 17580 | E32: 净结余
A33: 合 计 | B33: =B30+B31+B32 -> 966470 | C33: =C30+C31+C32 -> 24501 | D33: =D30+D31+D32 -> 990971 | E33: 合 计 | F33: =F28+F30 -> 966470 | G33: =G28+G30 -> 24501 | H33: =H28+H30 -> 990971
F34: =B33-F33 -> 0 | G34: =C33-G33 -> 0 | H34: =D33-H33 -> 0
B38: =D24+政府性基金调整表!D28 -> 192806

Sheet 本级收入表
A1: 陆丰市2025年一般公共预算收入调整预算表（草案）
A2: 表2 | G2: 单位：万元
A3: 项 目 | B3: 2024年完成数 | C3: 2025年9月预算调整数 | D3: 调整数 | E3: 调整后预算数 | F3: 自然口径收入 增幅（%) | G3: 同口径收入 增幅（%)
A4: 一般公共预算收入合计 | B4: =B5+B19 -> 146186 | C4: =C5+C19 -> 176527 | D4: =D5 -> 2968 | E4: =E5+E19 -> 188500 | F4: 28.9 | G4: 13.0
A5: 一、税收收入 | B5: =SUM(B6:B18) -> 51612 | C5: =SUM(C6:C18) -> 81032 | D5: =SUM(D6:D18) -> 2968 | E5: =SUM(E6:E18) -> 84000 | F5: 62.8 | G5: 16.4
A6: 增值税 | B6: 13819 | C6: 27864 | D6: =3306+309 -> 3615 | E6: =C6+D6 -> 31479 | F6: 127.8 | G6: 26.6
A7: 企业所得税 | B7: 6349 | C7: 12798 | D7: =6123+300 -> 6423 | E7: 19221 | F7: 202.7 | G7: 68.2
A8: 个人所得税 | B8: 1213 | C8: 2448 | D8: 0 | E8: 2448 | F8: 101.8 | G8: 12.1
A9: 资源税 | B9: 69 | C9: 80 | D9: 0 | E9: 80 | F9: 15.9 | G9: 15.9
A10: 城市维护建设税 | B10: 5071 | C10: 5680 | D10: 0 | E10: 5680 | F10: 12.0 | G10: 12.0
A11: 房产税 | B11: 4047 | C11: 4530 | D11: -3730 | E11: 800 | F11: -80.2 | G11: -80.2
A12: 印花税 | B12: 1619 | C12: 1810 | D12: 0 | E12: 1810 | F12: 11.8 | G12: 11.8
A13: 城镇土地使用税 | B13: 1909 | C13: 2140 | D13: -1540 | E13: 600 | F13: -68.6 | G13: -68.6
A14: 土地增值税 | B14: 4319 | C14: 8712 | D14: 0 | E14: 8712 | F14: 101.7 | G14: 12.1
A15: 车船税 | B15: 1861 | C15: 2080 | D15: 0 | E15: 2080 | F15: 11.8 | G15: 11.8
A16: 环保税 | B16: 270 | C16: 300 | D16: 1400 | E16: 1700 | F16: 529.6 | G16: 529.6
A17: 耕地占用税 | B17: 5034 | C17: 6000 | D17: -2200 | E17: 3800 | F17: -24.5 | G17: -24.5
A18: 契税 | B18: 6032 | C18: 6590 | D18: -1000 | E18: 5590 | F18: -7.3 | G18: -7.3
A19: 二、非税收入 | B19: =SUM(B20:B27) -> 94574 | C19: =SUM(C20:C27) -> 95495 | D19: =SUM(D20:D27) -> 9005 | E19: =SUM(E20:E27) -> 104500 | F19: 10.5 | G19: 10.5
A20: 专项收入 | B20: 25554 | C20: 3990 | D20: 1063 | E20: =C20+D20 -> 5053 | F20: -80.2 | G20: -80.2
A21: 行政事业性收费收入 | B21: 21434 | C21: 10860 | D21: -6323 | E21: 4537 | F21: -78.8 | G21: -78.8
A22: 罚没收入 | B22: 22569 | C22: 11860 | D22: -8595 | E22: 3265 | F22: -85.5 | G22: -85.5
A23: 国有资本经营收入 | D23: 4 | E23: 4
A24: 国有资源（资产）有偿使用收入 | B24: 8356 | C24: 54365 | D24: 26306 | E24: =C24+D24 -> 80671 | F24: 865.4 | G24: 865.4
A25: 捐赠收入 | B25: 11082 | C25: 10660 | D25: -1460 | E25: 9200 | F25: -17.0 | G25: -17.0
A26: 政府住房基金收入 | B26: 402 | C26: 300 | D26: 0 | E26: 300 | F26: -25.4 | G26: -25.4
A27: 其他收入 | B27: 5177 | C27: 3460 | D27: -1990 | E27: 1470 | F27: -71.6 | G27: -71.6
A28: 附注：（本年预算税收占比44.6%）

Sheet 一般公共预算支出调整表
A1: 陆丰市2025年一般公共预算本级支出调整预算表(草案）
A2: 表3 | E2: 单位：万元
A3: 项 目 | B3: 2025年预算数 | C3: 调整金额 | E3: 调整后预算数
C4: 从预备费调整 | D4: 从本级收入中调整
A5: 一般公共预算支出合计 | B5: =B6+B8+B9+B10+B11+B13+B14+B15+B16+B17+B18+B19+B20+B23+B24+B25+B26+B27+B29+B30+B31+B32 -> 907971 | C5: =C6+C8+C9+C10+C11+C13+C14+C15+C16+C17+C18+C19+C20+C23+C24+C25+C26+C27+C29+C30+C31+C32 -> 0 | D5: =D6+D8+D9+D10+D11+D13+D14+D15+D16+D17+D18+D19+D20+D23+D24+D25+D26+D27+D29+D30+D31+D32 -> 5939 | E5: =E6+E8+E9+E10+E11+E13+E14+E15+E16+E17+E18+E19+E20+E23+E24+E25+E26+E27+E29+E30+E31+E32 -> 913910
A6: 一、一般公共服务 | B6: 68461 | D6: =D7 -> 2500 | E6: =68460.578295+2500 -> 70961
A7: 税收征收经费 | D7: 2500
A8: 二、国防支出 | B8: 206 | D8: =E8-B8 -> 0 | E8: 206
A9: 三、公共安全 | B9: 48122 | D9: =E9-B9 -> 0 | E9: 48122
A10: 四、教育 | B10: 243058 | D10: =E10-B10 -> 0 | E10: =243058 -> 243058
A11: 五、科学技术 | B11: 1653 | C11: =C12 -> 3000 | D11: =D12 -> 0 | E11: =1653+3000 -> 4653
A12: 陆丰市陆投数据科技有限公司申请拨付充电桩、智慧停车场项目资本金 | C12: 3000 | D12: 0
A13: 六、文化体育与传媒 | B13: 8167 | D13: =E13-B13 -> 0 | E13: 8167
A14: 七、社会保障和就业 | B14: 188507 | D14: 0 | E14: 188507
A15: 八、医疗卫生 | B15: 147494 | D15: 0 | E15: 147494
A16: 九、环境保护 | B16: 4662 | D16: 0 | E16: 4662
A17: 十、城乡社区事务 | B17: 17700 | D17: 0 | E17: =17700.1044 -> 17700
A18: 十一、农林水事务 | B18: 88375 | D18: 0 | E18: 88375
A19: 十二、交通运输 | B19: 27981 | D19: 0 | E19: 27981
A20: 十三、资源勘探电力信息等事务 | B20: 543 | C20: =C21+C22 -> 7000 | D20: =D21+D22 -> 800 | E20: =543.1612+7600+200 -> 8343
A21: 市投控公司申请拨付公共屋顶光伏项目有偿使用权项目资本金 | C21: 7000 | D21: 600
A22: 拨陆丰市投资控股有限公司首笔注册资本金 | D22: 200
A23: 十四、商业服务业等事务 | B23: 640 | D23: =E23-B23 -> 0 | E23: 640
A24: 十五、金融监管等事务支出 | B24: 0 | D24: =E24-B24 -> 0 | E24: 0
A25: 十六、自然资源气象等事务 | B25: 4180 | D25: =E25-B25 -> 0 | E25: 4180
A26: 十七、住房保障支出 | B26: 19543 | D26: =E26-B26 -> 0 | E26: 19543
A27: 十八、粮油物资储备管理事务 | B27: 2650 | D27: =D28 -> 2639 | E27: =2650+2639 -> 5289
A28: 2025年度地储粮油利息费用补贴项目 | D28: 2639
A29: 十九、灾害防治及应急管理 | B29: 3407 | D29: =E29-B29 -> 0 | E29: 3407
A30: 二十、预备费 | B30: 10000 | C30: =E30-B30 -> -10000 | E30: 0
A31: 二十一、债务付息及发行费支出 | B31: 5500 | D31: =E31-B31 -> 0 | E31: 5500
A32: 二十二、其他支出 | B32: 17121 | D32: =E32-B32 -> 0 | E32: 17121

Sheet 政府性基金调整表
A1: 陆丰市2025年政府性基金预算调整表（草案）
A3: 收入项目 | B3: 2025年年初预算数 | C3: 调整数 | D3: 调整后预算数 | E3: 支出项目 | F3: 2025年年初预算数 | G3: 调整数 | H3: 调整后预算数
A6: 港口建设费收入 | E6: 文化体育与传媒支出 | F6: =F7 -> 13 | G6: =G7 -> 0 | H6: =H7 -> 13
A7: 国有土地收益基金收入 | E7: 国家电影事业发展专项资金及对应专项债务收入安排的支出 | F7: 13 | G7: =H7-F7 -> 0 | H7: 13
A8: 农业土地开发资金收入 | E8: 社会保障和就业 | F8: 0 | G8: 0 | H8: 0
A9: 国有土地使用权出让收入 | B9: =B10+B11+B12+B13+B14 -> 160,198 | C9: =D9-B9 -> -100,186 | D9: =D10+D11+D12+D13+D14 -> 60,012 | E9: 城乡社区支出 | F9: =F10+F21+F25+F27+F32+F35+F38 -> 80,595 | G9: =G10+G21+G25+G27+G32+G35+G38 -> -31,951 | H9: =H10+H21+H25+H27+H32+H35+H38 -> 48,644
A10: 土地出让价款收入 | B10: 119,521 | C10: =D10-B10 -> -60,126 | D10: =59521-126 -> 59,395 | E10: 国有土地使用权出让收入及对应专项债务收入安排的支出 | F10: =SUM(F11:F20) -> 67,955 | G10: =SUM(G11:G20) -> -31,187 | H10: =SUM(H11:H20) -> 36,768
A11: 补缴的土地价款 | B11: 2,000 | C11: =D11-B11 -> 0 | D11: 2,000 | E11: 征地和拆迁补偿支出 | F11: =32216-1717-486 -> 30,013 | G11: =H11-F11 -> -14,859 | H11: 15,154
A12: 划拨土地收入 | B12: 41,495 | C12: -40,000 | D12: 1,495 | E12: 土地开发支出 | F12: 5,502 | G12: -5,031 | H12: 471
A13: 缴纳新增建设用地土地有偿使用费 | B13: -2,818 | C13: -186 | D13: -3,004 | E13: 城市建设支出
A14: 其他土地出让收入 | C14: 126 | D14: 126 | E14: 农村基础设施建设支出 | F14: 30,000 | G14: -10,797 | H14: 19,203
A15: 彩票公益金收入 | B15: =B16+B17 -> 1,450 | C15: =D15-B15 -> 0 | D15: =D16+D17 -> 1,450 | E15: 补助被征地农民支出 | F15: 500 | G15: -500 | H15: 0
A16: 福利彩票公益金收入 | B16: 750 | C16: 0 | D16: 750 | E16: 土地出让业务支出
A17: 体育彩票公益金收入 | B17: 700 | C17: 0 | D17: 700 | E17: 支付破产或改制企业职工安置费
A18: 城市基础设施配套费收入 | B18: 1,000 | C18: -800 | D18: 200 | E18: 公共租赁住房支出
A19: 污水处理费收入 | B19: 3,670 | C19: -1,470 | D19: 2,200 | E19: 棚户区改造支出
A20: 其他政府性基金收入 | E20: 其他土地使用权出让收入安排的支出 | F20: 1,940 | G20: =H20-F20 -> 0 | H20: 1,940
A21: 其他政府性基金专项债务对应项目专项收入 | E21: 国有土地收益基金及对应专项债务收入安排的支出
A22: 彩票发行售机构的业务费用 | E22: 征地和拆迁补偿支出
A23: 福利彩票发行机构的业务费用 | E23: 土地开发支出
A24: 体育彩票发行机构的业务费用 | E24: 其他国有土地收益基金支出
A25: 福利彩票销售机构的业务费用 | E25: 农业土地开发资金及对应专项债务收入安排的支出 | F25: 400 | G25: =H25-F25 -> -200 | H25: 200
A26: 体育彩票销售机构的业务费用 | E26: 农业土地开发 | F26: 400 | G26: =H26-F26 -> -200 | H26: 200
A27: 收入合计 | B27: =B6+B7+B8+B9+B15+B18+B19+B20+B21+B22 -> 166,318 | C27: =C6+C7+C8+C9+C15+C18+C19+C20+C21+C22 -> -102,456 | D27: =D6+D7+D8+D9+D15+D18+D19+D20+D21+D22 -> 63,862 | E27: 城市基础设施配套费及对应专项债务收入安排的支出 | F27: =F28+F29+F30 -> 3,080 | G27: =G28+G29+G30 -> -1,419 | H27: =H28+H29+H30 -> 1,661
A28: 债务收入 | B28: 252,000 | C28: =D28-B28 -> -88,600 | D28: 163,400 | E28: 城市公共设施
A29: 转移性收入 | B29: =1717+1395 -> 3,112 | C29: 0 | D29: =1717+1395 -> 3,112 | E29: 城市环境卫生 | F29: 3,080 | G29: =H29-F29 -> -1,419 | H29: 1,661
A30: 政府性基金转移收入 | B30: 3,112 | C30: 0 | D30: 3,112 | E30: 公用房屋
A31: 政府性基金补助收入 | B31: 3,112 | C31: 0 | D31: 3,112 | E31: 其他城市基础设施配套费安排的支出
A32: 政府性基金转移支付收入 | B32: 3,112 | C32: 0 | D32: 3,112 | E32: 污水处理费及对应专项债务收入安排的支出 | F32: =F33+F34 -> 9,160 | G32: =H32-F32 -> -6,072 | H32: =H33+H34 -> 3,088
A33: 其中：通过市级转下达 | E33: 污水处理设施建设和运营 | F33: 9,160 | G33: =H33-F33 -> -6,072 | H33: 3,088
A34: 省级直接下达 | B34: =1717+1395 -> 3,112 | C34: =D34-B34 -> 0 | D34: =1717+1395 -> 3,112 | E34: 代征手续费
A35: 地震灾后恢复重建补助收入 | E35: 土地储备专项债券收入安排的支出 | G35: =H35-F35 -> 1,200 | H35: 1,200
A36: 上年结转收入 | B36: 3,506 | C36: =D36-B36 -> -1,154 | D36: 2,352 | E36: 土地开发支出 | G36: 50 | H36: 50
A37: 调入资金 | E37: 其他土地储备专项债券收入安排的支出 | G37: 1,150 | H37: 1,150
E38: 超长期特别国债安排的支出 | G38: 5,727 | H38: 5,727
E39: 城乡社区公共设施 | G39: 5,727 | H39: 5,727
E40: 农林水支出 | F40: =SUM(F41:F43) -> 3,918 | G40: =SUM(G41:G43) -> -1,837 | H40: =SUM(H41:H43) -> 2,081
E41: 大中型水库库区基金安排的支出
E42: 大中型水库移民后期扶持基金支出 | F42: =883+1441+1395+118 -> 3,837 | G42: =H42-F42 -> -1,837 | H42: 2,000
E43: 小型水库移民扶助基金安排的支出 | F43: 81 | G43: =H43-F43 -> 0 | H43: 81
E44: 其他支出 | F44: =F45+F51 -> 252,410 | G44: =G45+G51 -> -126,119 | H44: =H45+H51 -> 126,291
E45: 其他政府性基金及对应专项债务收入安排的支出 | F45: =F46+F47 -> 250,000 | G45: =G46+G47 -> -125,500 | H45: =H46+H47 -> 124,500
E46: 其他政府性基金安排的支出
E47: 其他地方自行试点项目收益专项债券收入安排的支出 | F47: 250,000 | G47: =H47-F47 -> -125,500 | H47: 124,500
E48: 彩票发行销售机构业务费安排的支出
E49: 福利彩票销售机构的业务费支出
E50: 体育彩票销售机构的业务费支出
E51: 彩票公益金安排的支出 | F51: =SUM(F52:F62) -> 2,410 | G51: =SUM(G52:G62) -> -619 | H51: =SUM(H52:H62) -> 1,791
E52: 用于补充全国社会保障基金的彩票公益金支出
E53: 用于社会福利的彩票公益金支出 | F53: 1,715 | G53: =H53-F53 -> -619 | H53: 1,096
E54: 用于体育事业的彩票公益金支出 | F54: 200 | G54: 0 | H54: 200
E55: 用于教育事业的彩票公益金支出
E56: 用于红十字事业的彩票公益金支出
E57: 用于残疾人事业的彩票公益金支出 | F57: =150+158 -> 308 | G57: 0 | H57: 308
E58: 用于文化事业的彩票公益金支出
E59: 用于扶贫的彩票公益金支出
E60: 用于法律援助的彩票公益金支出
E61: 用于城乡医疗救助的彩票公益金支出 | F61: 150 | G61: 0 | H61: 150
E62: 用于其他社会公益事业的彩票公益金支出 | F62: 37 | G62: 0 | H62: 37
E63: 抗疫特别国债安排的支出
E64: 债务付息支出 | F64: =F65 -> 41,000 | G64: =G65 -> 0 | H64: =H65 -> 41,000
E65: 地方政府专项债务付息支出 | F65: 41,000 | G65: =H65-F65 -> 0 | H65: 41,000
E66: 债务发行费用支出 | G66: =H66-F66 -> 351 | H66: 351
E67: 地方政府专项债务发行费用支出 | G67: =H67-F67 -> 351 | H67: 351
E68: 支出合计 | F68: =F6+F8+F9+F40+F44+F64+F66 -> 377,936 | G68: =G6+G8+G9+G40+G44+G64+G66 -> -159,556 | H68: =H6+H8+H9+H40+H44+H64+H66 -> 218,380
E69: 转移性支出 | F69: =F70+F72+F75+F77+F79 -> 47,000 | G69: =G70+G72+G75+G77+G79 -> -32,654 | H69: =H70+H72+H75+H77+H79 -> 14,346
E70: 债务还本支出 | F70: 2,000 | H70: 2,000
E71: 地方政府专项债务还本支出 | F71: 2,000 | H71: 2,000
E72: 政府性基金转移支付
E73: 政府性基金补助支出
E74: 政府性基金上解支出
E75: 债务转贷支出
E76: 其他地方政府债务转贷支出
E77: 调出资金 | F77: =F78 -> 45,000 | G77: =G78 -> -35,000 | H77: =H78 -> 10,000
E78: 政府性基金调出资金 | F78: 45,000 | G78: =H78-F78 -> -35,000 | H78: 10,000
E79: 年终结转 | G79: =H79-F79 -> 2,346 | H79: =3500-1154 -> 2,346
A80: 收入总计 | B80: =B27+B28+B29+B36+B38 -> 424,936 | C80: =C27+C28+C29+C36+C38 -> -192,210 | D80: =D27+D28+D29+D36+D38 -> 232,726 | E80: 支出总计 | F80: =F68+F69 -> 424,936 | G80: =G68+G69 -> -192,210 | H80: =H68+H69 -> 232,726
F82: =F80-B80 -> 0 | G82: =G80-C80 -> 0 | H82: =H80-D80 -> 0

Sheet 国有资本经营预算调整表
A1: 陆丰市2025年国有资本经营预算调整表（草案）
H3: 单位：万元
A4: 收入项目 | B4: 2025年预算数 | C4: 调整数 | D4: 调整后预算数 | E4: 支出项目 | F4: 2025年预算数 | G4: 调整数 | H4: 调整后预算数
A6: 一、利润收入 | E6: 一、国有资本经营预算支出 | F6: =SUM(F7:F10) -> 619 | G6: =SUM(G7:G10) -> 0 | H6: =SUM(H7:H10) -> 619
A7: 二、股利、股息收入 | B7: 37 | C7: =D7-B7 -> 0 | D7: 37 | E7: 1、解决历史遗留问题及改革成本支出 | F7: 200 | G7: =H7-F7 -> 0 | H7: 200
A8: 三、产权转让收入 | B8: 7,000 | C8: -7,000 | D8: 0 | E8: 2、国有企业资本金注入
A9: 四、清算收入 | E9: 3、国有企业政策性补贴 | F9: 52 | H9: 52
A10: 五、其他国有资本经营收入 | E10: 4、其他国有资本经营预算支出 | F10: 367 | G10: =H10-F10 -> 0 | H10: 367
A11: 六、国有资本经营预算转移支付收入 | B11: 526 | C11: 0 | D11: 526 | E11: 二、转移性支出 | F11: 7,000 | G11: =H11-F11 -> -7,000 | H11: 0
E12: 1、国有资本经营预算转移支付
E13: 2、调出资金 | F13: 7,000 | G13: =H13-F13 -> -7,000 | H13: 0
A16: 本年收入合计 | B16: =SUM(B6:B11) -> 7,563 | C16: =D16-B16 -> -7,000 | D16: =SUM(D6:D11) -> 563 | E16: 本年支出合计 | F16: =F6+F11 -> 7,619 | G16: =G6+G11 -> -7,000 | H16: =H6+H11 -> 619
A17: 上年结转 | B17: 56 | C17: 0 | D17: 56 | E17: 结转下年
A18: 其中：净结余 | B18: 56 | C18: 0 | D18: 56 | E18: 其中：净结余
A19: 项目结转 | E19: 项目结转
A21: 收入总计 | B21: =B16+B17 -> 7,619 | C21: =C16+C17 -> -7,000 | D21: =D16+D17 -> 619 | E21: 支出总计 | F21: =F16+F17+F20 -> 7,619 | G21: =G16+G17+G20 -> -7,000 | H21: =H16+H17+H20 -> 619
F23: =F21-B21 -> 0 | G23: =G21-C21 -> 0 | H23: =H21-D21 -> 0

Sheet 政府性债券安排表
A1: 陆丰市2025年新增政府性债券资金安排表
A2: 附表5 | G2: 单位：万元
A3: 序号 | B3: 新增债券使用项目 | C3: 债券类型 | D3: 管理使用单位 | E3: 主管部门 | F3: 债券额度安排 | G3: 备注
A5: 1 | B5: 陆丰市长安路、永泰路环境提升项目 | C5: 一般债券 | D5: 陆丰市住房和城乡建设局 | E5: 陆丰市住房和城乡建设局 | F5: 1,600
A6: 2 | B6: 陆丰市南塘消防救援站新建项目 | C6: 一般债券 | D6: 陆丰市消防救援大队 | E6: 陆丰市消防救援大队 | F6: 3,400
A7: 3 | B7: 国道228线甲子至南塘段改建工程 | C7: 一般债券 | D7: 陆丰市交通运输局 | E7: 陆丰市交通运输局 | F7: 10,000
A8: 4 | B8: 陆丰市生活垃圾设备及收集点升级项目 | C8: 一般债券 | D8: 陆丰市住房和城乡建设局 | E8: 陆丰市住房和城乡建设局 | F8: 1,000
A9: 5 | B9: 陆丰市乌坎村乡村振兴配套设施建设项目 | C9: 一般债券 | D9: 陆丰市东海街道办事处 | E9: 陆丰市东海街道办事处 | F9: 3,000
A10: 6 | B10: 陆丰市甲港公路配套工程 | C10: 一般债券 | D10: 陆丰市交通运输局 | E10: 陆丰市交通运输局 | F10: 1,000
A11: 7 | B11: 陆丰市县级及重点镇级主支流河道常态化保洁服务 | C11: 一般债券 | D11: 陆丰市水务局 | E11: 陆丰市水务局 | F11: 1,000
A12: 8 | B12: 陆丰市碣石海工基地（二期）项目 | C12: 专项债券 | D12: 陆丰市碣石临港工业园开发有限公司 | E12: 陆丰市科技工业和信息化局 | F12: 5,000
A13: 9 | B13: 陆丰市高质量推进农村生活污水治理项目 | C13: 专项债券 | D13: 陆丰市住房和城乡建设局 | E13: 陆丰市住房和城乡建设局 | F13: 11,000
A14: 10 | B14: 陆丰市乡村振兴人居环境提升建设工程 | C14: 专项债券 | D14: 陆丰市农业农村局 | E14: 陆丰市农业农村局 | F14: 2,000
A15: 11 | B15: 星都经济开发区产业园区基础设施配套工程（二期） | C15: 专项债券 | D15: 陆丰星都管理办公室 | E15: 陆丰星都管理办公室 | F15: 3,000
A16: 12 | B16: 陆丰市碣石海工基地（三期）项目 | C16: 专项债券 | D16: 陆丰市碣石临港工业园开发有限公司 | E16: 陆丰市科技工业和信息化局 | F16: 8,000
A17: 13 | B17: 陆丰市东海镇老旧小区综合改造项目 | C17: 专项债券 | D17: 陆丰市东海街道办事处 | E17: 陆丰市东海街道办事处 | F17: 1,000
A18: 14 | B18: 陆丰产业转移工业园（省级）基础设施建设项目 | C18: 专项债券 | D18: 陆丰市住房和城乡建设局 | E18: 陆丰市住房和城乡建设局 | F18: 5,000
A19: 15 | B19: 陆丰市城区雨污分流及排水系统整治工程项目 | C19: 专项债券 | D19: 陆丰市住房和城乡建设局 | E19: 陆丰市住房和城乡建设局 | F19: 2,500
A20: 16 | B20: 陆丰市三甲地区工业园区基础设施项目 | C20: 专项债券 | D20: 陆丰市市政投资建设公司 | E20: 陆丰市甲东镇人民政府 | F20: 800
A21: 17 | B21: 陆丰市乡村振兴共同富裕示范带建设工程 | C21: 专项债券 | D21: 陆丰市农业农村局 | E21: 陆丰市农业农村局 | F21: 21,000
A22: 18 | B22: 陆丰市乌坎滨海旅游环境综合整治项目 | C22: 专项债券 | D22: 陆丰市东海街道办事处 | E22: 陆丰市东海街道办事处 | F22: 1,200
A23: 19 | B23: 收回陆丰市市政建设投资有限公司土地（回收存量闲置土地） | C23: 专项债券 | D23: 陆丰市自然资源局 | E23: 陆丰市自然资源局 | F23: 1,000
A24: 20 | B24: 有偿收回陆丰广垦置业有限公司（回收存量闲置土地） | C24: 专项债券 | D24: 陆丰市自然资源局 | E24: 陆丰市自然资源局 | F24: 1,100
A25: 21 | B25: 陆丰市乡镇公立幼儿园补短板建设项目 | C25: 专项债券 | D25: 陆丰市教育局 | E25: 陆丰市教育局 | F25: 1,000
A26: 22 | B26: 陆丰市城东镇农村产业基础设施提升项目 | C26: 专项债券 | D26: 陆丰市城东街道办事处 | E26: 陆丰市城东街道办事处 | F26: 1,500
A27: 23 | B27: 陆丰市职业艺体特色教育提质升级项目 | C27: 专项债券 | D27: 陆丰市教育局 | E27: 陆丰市教育局 | F27: 1,500
A28: 24 | B28: 陆丰市高铁枢纽一体化建设工程 | C28: 专项债券 | D28: 陆丰市交通运输局 | E28: 陆丰市交通运输局 | F28: 8,000
A29: 25 | B29: 陆丰市螺河水闸重建工程 | C29: 专项债券 | D29: 陆丰市水利工程建设管理中心 | E29: 陆丰市水务局 | F29: 12,000
A30: 26 | B30: 陆丰市医疗卫生整体配套提升项目 | C30: 专项债券 | D30: 陆丰市卫生健康局 | E30: 陆丰市卫生健康局 | F30: 3,000
A31: 27 | B31: 陆丰市第二职业技术学校新建产教融合大楼、学生宿舍楼、大礼堂（兼容艺术楼） | C31: 专项债券 | D31: 陆丰市教育局 | E31: 陆丰市教育局 | F31: 500
A32: 28 | B32: 星都经济开发区产业园区基础设施配套工程 | C32: 专项债券 | D32: 陆丰星都管理办公室 | E32: 陆丰星都管理办公室 | F32: 4,000
A33: 29 | B33: 陆丰市第二职业技术学校学生宿舍楼、实训大楼建设项目 | C33: 专项债券 | D33: 陆丰市教育局 | E33: 陆丰市教育局 | F33: 500
A34: 30 | B34: 陆丰市疾病预防控制中心新建项目 | C34: 专项债券 | D34: 陆丰市疾病预防控制中心 | E34: 陆丰市卫生健康局 | F34: 7,000
A35: 31 | B35: 陆丰市城东街道至陂洋区域停车设施及道路升级改造工程 | C35: 专项债券 | D35: 陆丰市公路事务中心 | E35: 陆丰市公路事务中心 | F35: 3,000
A36: 32 | B36: 陆丰市预制菜产业园建设项目 | C36: 专项债券 | D36: 陆丰市农业农村局 | E36: 陆丰市农业农村局 | F36: 4,000
A37: 33 | B37: 陆丰市螺河至碣石引水工程 | C37: 专项债券 | D37: 陆丰市城乡自来水有限公司 | E37: 陆丰市水务局 | F37: 7,000
A38: 34 | B38: 陆丰市高级技工学校新建项目 | C38: 专项债券 | D38: 陆丰市人力资源和社会保障局 | E38: 陆丰市人力资源和社会保障局 | F38: 1,000
A39: 35 | B39: 陆丰市金厢镇十二岗村乡村振兴配套基础设施建设工程 | C39: 专项债券 | D39: 陆丰市金厢镇人民政府 | E39: 陆丰市金厢镇人民政府 | F39: 500
A40: 36 | B40: 陆丰市碣石海洋工程基地护岸项目 | C40: 专项债券 | D40: 陆丰市碣石临港工业园开发有限公司 | E40: 陆丰市科技工业和信息化局 | F40: 1,000
A41: 37 | B41: 陆丰市碣石大桥桥闸重建工程 | C41: 专项债券 | D41: 陆丰市水务局 | E41: 陆丰市水务局 | F41: 1,000
A42: 38 | B42: 陆丰市碣石渔港建设及基础设施配套工程项目 | C42: 专项债券 | D42: 陆丰市农业农村局 | E42: 陆丰市农业农村局 | F42: 1,000
A43: 39 | B43: 陆丰市职业技术学校等3所职校实训配套设施及碣石新安职业技术学校教学楼建设工程项目 | C43: 专项债券 | D43: 陆丰市教育局 | E43: 陆丰市教育局 | F43: 1,000
A44: 40 | B44: 陆丰市八万河水环境综合整治工程 | C44: 专项债券 | D44: 陆丰市水务局 | E44: 陆丰市水务局 | F44: 500
A45: 41 | B45: 陆丰市碣石海洋工程基地公共区域配套项目 | C45: 专项债券 | D45: 陆丰市碣石临港工业园开发有限公司 | E45: 陆丰市科技工业和信息化局 | F45: 500
A46: 42 | B46: 陆丰市第四人民医院（陆丰市精神病院）建设项目 | C46: 专项债券 | D46: 陆丰市慢性病防治站 | E46: 陆丰市卫生健康局 | F46: 2,000
A47: 43 | B47: 星都经济开发区居民生活污水收集管网建设项目 | C47: 专项债券 | D47: 广东汕尾星都经济开发区管理委员会 | E47: 广东汕尾星都经济开发区管理委员会 | F47: 0
A48: 44 | B48: 东海镇乌坎村农民公寓项目 | C48: 专项债券 | D48: 陆丰市东海街道办事处 | E48: 陆丰市东海街道办事处 | F48: 14,200
A49: 45 | B49: 国道G324线陆丰穿城段改建工程 | C49: 专项债券 | D49: 陆丰市公路事务中心 | E49: 陆丰市公路事务中心 | F49: 1,800
A50: 46 | B50: 陆丰市进站路和新324国道升级改造工程 | C50: 专项债券 | D50: 陆丰市交通运输局 | E50: 陆丰市交通运输局 | F50: 7,500
A51: 47 | B51: 陆丰市东海经济开发区汕汕铁路南、东海大道西侧国有建设用地(回收存量闲置土地)3 | C51: 专项债券 | D51: 陆丰市自然资源局 | E51: 陆丰市自然资源局 | F51: 6,500
A52: 48 | B52: 陆丰市存量政府投资项目 | C52: 专项债券 | D52: 陆丰市财政局 | E52: 陆丰市财政局 | F52: 4,500
F53: =SUM(F5:F52) -> 179,600
